Cogmind - Beta 16 @@@ ROGUE MODE // 2025.10.29 @ 03:27:40 Player: pappous Result: Destroyed by B-75 Beast with Heavy Machine Gun Performance ------------- Evolutions (2) 1000 Regions Visited (9) 1800 Robots Destroyed (66) 330 Value Destroyed (2750) 2750 Prototype IDs (5) 100 Alien Tech Used (0) 0 Bonus (364) 364 TOTAL SCORE: 6344 Bonus ------- High Alert Combat Kills 118 Follower Combat Kills 46 Entered Garrisons 200 Cogmind --------- Core Integrity 0/550 Matter 261/300 Energy 99/100 System Corruption 4% Temperature Cool (0) Movement Rolling (195) Ox7 Location -8/Garrison Parts ------- > --- POWER (1) -------- (None) > --- PROPULSION (3) --- Armored Wheel > --- UTILITY (5) ------ Improved Heat Sink Huge Storage Unit Signal Interpreter Target Analyzer > --- WEAPON (2) ------- Plasma Cannon > --- INVENTORY (25) --- Light Ion Engine Reinforced Ion Engine Light Treads Light Treads Large Storage Unit High-capacity Battery (250) Visual Processing Unit Improved Sensor Array Improved Signal Interpreter Improved Terrain Scanner Transport Network Coupler Targeting Computer Core Analyzer Hardened Medium Armor Plating Reactive Plating Shield Generator Relay Coupler [NC] (32) Relay Coupler [Hunter] (24) Component Analysis Suite Thief Drone Bay (3/3) Heavy Particle Gun Peak State ------------ > --- POWER ------------ Micro Nuclear Core > --- PROPULSION ------- Light Treads Armored Huge Wheel > --- UTILITY ---------- Huge Storage Unit Signal Interpreter Targeting Computer Target Analyzer Hardened Medium Armor Plating > --- WEAPON ----------- Shock Rifle Shock Rifle > --- INVENTORY -------- Light Treads Carbon-fiber Leg Armored Wheel Improved Heat Sink Large Storage Unit High-capacity Battery Visual Processing Unit Improved Sensor Array Improved Signal Interpreter Improved Terrain Scanner Transport Network Coupler Targeting Computer Core Analyzer Reaction Control System Hardened Medium Armor Plating Reactive Plating Shield Generator Relay Coupler [NC] Relay Coupler [Hunter] Component Analysis Suite Thief Drone Bay Heavy Particle Gun Heavy Particle Gun Plasma Cannon Rocket Launcher [Rating: 35] Favorites ----------- Power Nuclear Core Engine Ion Engine Power Core Nuclear Core Propulsion Light Treads Treads Light Treads Leg Carbon-fiber Leg Wheel Wheel Utility Huge Storage Unit Device Sensor Array Storage Huge Storage Unit Processor Signal Interpreter Protection Hardened Light Armor Plating Weapon Particle Gun Energy Gun Particle Gun Energy Cannon Plasma Cannon Ballistic Gun Light Assault Rifle Ballistic Cannon Gauss Cannon Launcher Rocket Launcher Impact Weapon Hammer Slashing Weapon Katana Build | -11 -10 -10 -9 -9 -9 -8 -8 -8 -8 ------- Run | Yrd Mat Min Mat Min Exi Min Mat Sto Gar Slots Evolved 4 | . . . 2 . . . 2 . . Power . | . . . . . . . . . . Propulsion 1 | . . . 1 . . . . . . Utility 3 | . . . 1 . . . 2 . . Weapon . | . . . . . . . . . . Parts Attached 57 | 6 5 3 5 5 . 7 10 . 16 Power 7 | 1 . 1 1 . . 1 2 . 1 Engine 2 | 1 . . . . . . 1 . . Core 5 | . . 1 1 . . 1 1 . 1 Reactor . | . . . . . . . . . . Propulsion 16 | 2 2 1 . 2 . 1 2 . 6 Treads 9 | 1 1 . . 2 . . 2 . 3 Leg 2 | . . . . . . . . . 2 Wheel 5 | 1 1 1 . . . 1 . . 1 Hover . | . . . . . . . . . . Flight . | . . . . . . . . . . Utility 15 | 1 1 1 3 2 . 1 3 . 3 Device 5 | . . . 1 1 . . 2 . 1 Storage 3 | 1 . 1 1 . . . . . . Processor 4 | . . . . 1 . 1 . . 2 Hackware . | . . . . . . . . . . Protection 3 | . 1 . 1 . . . 1 . . Artifact . | . . . . . . . . . . Weapon 19 | 2 2 . 1 1 . 4 3 . 6 Energy Gun 11 | 1 1 . 1 1 . 1 2 . 4 Energy Cannon 1 | . . . . . . . . . 1 Ballistic Gun 3 | 1 . . . . . . 1 . 1 Ballistic Cannon 1 | . . . . . . 1 . . . Launcher 1 | . . . . . . 1 . . . Special Weapon . | . . . . . . . . . . Impact Weapon 1 | . 1 . . . . . . . . Slashing Weapon 1 | . . . . . . 1 . . . Piercing Weapon . | . . . . . . . . . . Special Melee Weapon . | . . . . . . . . . . Unidentified Prototypes 2 | . . . . 1 . . 1 . . Parts Lost 21 | . . 1 . 1 . 4 2 1 12 Power 5 | . . 1 . . . 1 1 . 2 Propulsion 7 | . . . . . . 3 . . 4 Utility 4 | . . . . 1 . . 1 1 1 Weapon 5 | . . . . . . . . . 5 Highest Loss Streak 6 | . . 1 . 1 . 3 1 1 6 To Critical Strikes . | . . . . . . . . . . Average Backups 16 | 2 7 7 11 15 18 18 23 24 24 Power . | . 1 . . 1 1 . . . . Propulsion 1 | 1 1 1 . 1 1 1 3 3 3 Utility 10 | . 3 5 6 9 11 11 13 16 16 Weapon 3 | . 1 1 3 3 5 4 5 5 3 Tool/Special . | . . . . . . . . . . Unused Backups 34 | . 3 . 4 2 . . 3 . 22 Power 5 | . 1 . 1 . . . 1 . 2 Propulsion 8 | . 1 . . 1 . . 1 . 5 Utility 16 | . . . 1 . . . . . 15 Weapon 5 | . 1 . 2 1 . . 1 . . Tool/Special . | . . . . . . . . . . Average Slot Usage (%) 90 | . 98 100 95 99 88 80 81 78 84 Engine 2 | . 14 4 . . . . 2 . . Core 8 | . . 9 11 11 11 10 6 9 7 Treads 15 | . 18 17 22 22 22 8 5 9 10 Leg 1 | . . . . . . . . . 5 Wheel 9 | . 9 10 11 11 11 11 9 9 6 Device 3 | . . . 6 10 . . 5 . 6 Storage 12 | . 14 24 13 11 11 11 9 9 9 Processor 10 | . . . . 7 11 18 18 15 21 Protection 4 | . 13 3 8 3 . . 7 9 2 Energy Gun 14 | . 13 14 11 22 22 14 9 6 10 Ballistic Gun 4 | . 14 14 7 . . . . 9 2 Ballistic Cannon 1 | . . . . . . 6 8 1 2 Peak Build Rating 35 | 6 9 10 15 21 16 25 34 31 35 Average Rating 18 | 4 8 9 13 15 16 20 30 30 28 On Entrance 15 | . 6 9 10 15 16 16 25 31 30 Avg Prop Armor Cover (%) 14 | 14 10 13 17 14 21 21 7 7 11 Naked Turns . | . . . . . . . . . . Heaviest Build 103 | 12 17 94 94 92 91 97 103 103 103 Greatest Support 60 | 16 40 40 40 20 10 28 28 28 60 Greatest Overweight (x) 9 | . 1 9 9 9 9 9 3 3 7 Average Overweight (x) 3 | . . 6 3 2 9 4 3 3 3 Largest Inventory Capacity 25 | 8 8 25 25 25 25 25 25 25 25 Average Capacity 20 | 7 8 20 16 16 25 25 25 25 25 Most Carried 25 | 4 8 8 15 20 19 20 25 25 25 Average Carried 16 | 2 7 7 11 15 19 18 23 24 24 Final Capacity 25 | 8 8 25 15 25 25 25 25 25 25 Final Carried 25 | 4 8 8 15 19 19 20 24 25 21 Class Distribution -------------------- 64% | Mutant 35% | Scavenger-Mutant Dominant Class ---------------- Mutant | -10/Materials Mutant | -10/Mines Mutant | -9/Materials Mutant | -9/Mines Scavenger-Mutant | -9/Exiles Mutant | -8/Mines Mutant | -8/Materials Scavenger-Mutant | -8/Storage Scavenger-Mutant | -8/Garrison Resources | -11 -10 -10 -9 -9 -9 -8 -8 -8 -8 ----------- Run | Yrd Mat Min Mat Min Exi Min Mat Sto Gar Matter Collected 1510 | 119 193 51 72 65 . 301 225 78 406 Remotely . | . . . . . . . . . . Salvage Created 2089 | . 127 97 145 82 . 277 314 235 812 Parts 118 | . 8 3 9 4 . 25 18 14 37 Haulers Intercepted . | . . . . . . . . . . Recyclers Shooed 2 | . 1 . . . . . 1 . . Parts Field Recycled . | . . . . . . . . . . Retrieved Matter . | . . . . . . . . . . Parts Self-Destructed . | . . . . . . . . . . Prevented . | . . . . . . . . . . Parts Restored . | . . . . . . . . . . Kills | -11 -10 -10 -9 -9 -9 -8 -8 -8 -8 ------- Run | Yrd Mat Min Mat Min Exi Min Mat Sto Gar Combat Hostiles Destroyed 64 | . 5 2 3 2 . 14 9 6 23 Melee 2 | . . . 1 . . 1 . . . Guns 39 | . 5 2 2 2 . 1 1 3 23 Cannons 13 | . . . . . . 5 8 . . AOE 10 | . . . . . . 7 . 3 . Classes Destroyed 9 | . 2 . 2 . . 2 2 . 1 Tunneler 1 | . . . 1 . . . . . . Recycler 1 | . . . . . . 1 . . . Swarmer 23 | . 3 . . . . 10 . . 10 Grunt 20 | . 2 2 2 2 . 3 5 2 2 Brawler 5 | . . . . . . . 1 . 4 Duelist 2 | . . . . . . . 1 1 . Sentry 9 | . . . 1 . . . 2 3 3 Hunter 2 | . . . . . . 1 . . 1 Programmer 3 | . . . . . . . . . 3 Best Kill Streak 5 | . 3 2 2 2 . 4 3 4 5 Combat Bots Only 5 | . 3 2 1 2 . 4 3 4 5 Max Kills in Single Turn 3 | . 1 1 1 1 . 3 1 2 1 Gunslinging . | . . . . . . . . . . Exploded 3 | . . . . . . 3 . 2 . Melee 1 | . . . 1 . . 1 . . . Uniques/NPCs Destroyed . | . . . . . . . . . . Combat | -11 -10 -10 -9 -9 -9 -8 -8 -8 -8 -------- Run | Yrd Mat Min Mat Min Exi Min Mat Sto Gar Hostile Shots Fired 420 | . 28 23 15 9 . 106 51 35 153 Missed 93 | . 5 2 5 2 . 23 7 13 36 Hits 327 | . 23 21 10 7 . 83 44 22 117 Melee 3 | . . . . . . . . . 3 Projectile 324 | . 23 21 10 7 . 83 44 22 114 Critical Strikes 18 | . 1 . . . . 1 6 2 8 Damage Taken 4790 | . 257 267 117 97 . 1109 673 330 1940 Core 1056 | . 54 49 15 14 . 356 86 79 403 Absorbed by Shields . | . . . . . . . . . . Core Remaining (%) 53 | 100 . 58 . . . 3 . . . Volleys Fired 212 | . 18 10 3 6 . 34 36 15 90 Largest 2 | . 2 2 2 2 . 2 2 2 2 Hottest 135 | . 85 85 105 105 . 105 96 78 135 Shots Fired 361 | . 35 20 6 12 . 50 62 25 151 Gun 281 | . 35 20 6 12 . 23 33 20 132 Cannon 64 | . . . . . . 18 29 . 17 Launcher 16 | . . . . . . 9 . 5 2 Special . | . . . . . . . . . . Kinetic 126 | . 18 10 2 . . 18 29 10 39 Thermal 203 | . 17 10 4 12 . 23 33 10 94 Explosive 16 | . . . . . . 9 . 5 2 Electromagnetic 16 | . . . . . . . . . 16 Robot Hit Streak 15 | . 13 12 7 15 . 12 12 9 10 Robot Miss Streak 9 | . 2 1 . 1 . 9 2 2 4 Penetration Max 1 | . . . . . . . . . 1 Secondary Targets 7 | . 1 1 . 1 . . . 1 3 Max Gunslinging Chain 1 | . 1 1 . 1 . . . 1 1 Shots Hit Robots 244 | . 22 17 9 10 . 31 46 17 92 Core Hits 112 | . 11 6 5 4 . 19 16 13 38 Critical Kills . | . . . . . . . . . . Critical Parts Destroyed 1 | . . . . . . . . . 1 Critical Strikes 14 | . 1 . . . . 2 5 . 6 Burn 10 | . 1 . . . . 1 3 . 5 Destroy 1 | . . . . . . . . . 1 Blast 3 | . . . . . . 1 2 . . Melee Attacks 18 | . 2 . 6 . . 10 . . . Impact 8 | . 2 . 6 . . . . . . Slashing 10 | . . . . . . 10 . . . Piercing . | . . . . . . . . . . Sneak Attacks 1 | . . . 1 . . . . . . Combat Hostiles . | . . . . . . . . . . Follow-up Attacks . | . . . . . . . . . . Damage Inflicted 5596 | . 238 211 174 139 . 1034 1020 721 2059 Guns 3172 | . 238 211 65 139 . 234 453 249 1583 Cannons 1087 | . . . . . . 256 567 . 264 Explosions 1091 | . . . . . . 407 . 472 212 Melee 246 | . . . 109 . . 137 . . . Ramming . | . . . . . . . . . . Kinetic 1601 | . 79 70 6 . . 256 567 90 533 Thermal 2533 | . 159 141 59 139 . 234 453 159 1189 Explosive 1058 | . . . . . . 407 . 472 179 Electromagnetic 158 | . . . . . . . . . 158 Impact 109 | . . . 109 . . . . . . Slashing 137 | . . . . . . 137 . . . Piercing . | . . . . . . . . . . Highest Corruption 4 | . . . . . . . . . 4 Average Corruption 4 | . . . . . . . . . 4 Corruption Purged . | . . . . . . . . . . Corruption Blocked . | . . . . . . . . . . Effects 11 | . . . . . . . . . 11 Message Errors 4 | . . . . . . . . . 4 Matter Fused 1 | . . . . . . . . . 1 Heat Flow Errors 1 | . . . . . . . . . 1 Energy Discharges 1 | . . . . . . . . . 1 Parts Rejected 1 | . . . . . . . . . 1 Parts Fused 1 | . . . . . . . . . 1 Data Loss (major) 1 | . . . . . . . . . 1 Misfires 1 | . . . . . . . . . 1 Overload Shots . | . . . . . . . . . . Overflow Damage 74 | . . . . . . 55 . . 19 Projectiles 15 | . . . . . . 15 . . . Explosions 59 | . . . . . . 40 . . 19 Melee . | . . . . . . . . . . Knockbacks 8 | . . . . . . 2 6 . . Impact . | . . . . . . . . . . Kinetic 8 | . . . . . . 2 6 . . Secondary . | . . . . . . . . . . Self-Inflicted Damage 106 | . . . . . . . . . 106 Shots 1 | . . . . . . . . . 1 Rammed . | . . . . . . . . . . Targets Rammed . | . . . . . . . . . . Kicked . | . . . . . . . . . . Crushed . | . . . . . . . . . . Highest Temperature 408 | . 204 408 57 306 . 207 320 219 167 Average Temperature 98 | . 82 209 29 157 . 77 114 84 19 Received Heat Transfer 1683 | . 105 150 30 54 . 459 477 162 246 Effects 8 | . . 2 . . . . 6 . . Shutdowns 1 | . . . . . . . 1 . . Energy Bleed 2 | . . 1 . . . . 1 . . Interference 4 | . . . . . . . 4 . . Damage (minor) 1 | . . 1 . . . . . . . Siege Activations . | . . . . . . . . . . Martial Activations . | . . . . . . . . . . Shielding Activations . | . . . . . . . . . . Robots Disrupted . | . . . . . . . . . . Combat Hostiles . | . . . . . . . . . . Robots Corrupted . | . . . . . . . . . . Combat Hostiles . | . . . . . . . . . . Parts Fried . | . . . . . . . . . . Impact Corruptions . | . . . . . . . . . . Robots Melted . | . . . . . . . . . . Combat Hostiles . | . . . . . . . . . . Parts Melted 12 | . 2 1 . 1 . . 1 . 7 Heat Transferred 6117 | . 434 333 136 322 . 596 1147 296 2853 Parts Sabotaged . | . . . . . . . . . . Parts Stolen . | . . . . . . . . . . Parts Stripped . | . . . . . . . . . . Power Chain Reactions 1 | . . . . . . . . . 1 Alert | -11 -10 -10 -9 -9 -9 -8 -8 -8 -8 ------- Run | Yrd Mat Min Mat Min Exi Min Mat Sto Gar Maximum Alert Level 3 | . . . . . . . . . 3 Low Security (%) 80 | 100 100 100 100 100 . 100 100 100 11 Level 1 9 | . . . . . . . . . 42 Level 2 5 | . . . . . . . . . 24 Level 3 4 | . . . . . . . . . 21 Level 4 . | . . . . . . . . . . Level 5 . | . . . . . . . . . . High Security . | . . . . . . . . . . Max Security . | . . . . . . . . . . Peak Influence 993 | . 62 40 45 81 . 112 156 176 993 Initial 110 | . . . . . . . 27 42 110 Average 122 | . 10 1 12 13 . 44 57 82 476 Influence Increases 2430 | . 156 50 115 230 . 386 352 188 953 Destroy 0b10 Robot/C 1420 | . 100 40 60 180 . 280 180 120 460 Destroy 0b10 Robot/NC 10 | . . . 5 . . 5 . . . Destroy Leader 220 | . 20 10 20 30 . 40 40 40 20 Allied During Kill 20 | . . . . 20 . . . . . Successful Hack 39 | . 21 . . . . . . 4 14 Disable Machine 90 | . 15 . 30 . . . 30 . 15 Anti-Garrison Action 300 | . . . . . . . . . 300 Destroy Structure 151 | . . . . . . 61 12 24 54 Partial Spotted 15 | . . . . . . . 15 . . Lose Combat Pursuer 165 | . . . . . . . 75 . 90 Influence Decreases 1487 | . 156 50 115 207 23 314 324 118 180 Entered New Map 186 | . . . . . 23 . 45 58 60 Time Decay 1071 | . 156 40 115 177 . 274 259 50 . Lost Part 210 | . . 10 . 10 . 40 20 10 120 Lost Ally 20 | . . . . 20 . . . . . Squads Dispatched 6 | . 2 . 2 1 . . . 1 . Investigation 2 | . 1 . . 1 . . . . . Extermination . | . . . . . . . . . . Reinforcement 3 | . 1 . 2 . . . . . . Assault . | . . . . . . . . . . Garrison 1 | . . . . . . . . 1 . Intercept . | . . . . . . . . . . Searches Triggered . | . . . . . . . . . . Construction Impeded . | . . . . . . . . . . Haulers Reinforced . | . . . . . . . . . . Active Scanning Responses . | . . . . . . . . . . Cargo Convoy Interrupts . | . . . . . . . . . . Stealth | -11 -10 -10 -9 -9 -9 -8 -8 -8 -8 --------- Run | Yrd Mat Min Mat Min Exi Min Mat Sto Gar Distress Signals 3 | . . . 2 . . . 1 . . Communications Jammed . | . . . . . . . . . . Distress Signals . | . . . . . . . . . . Times Spotted 90 | . 8 2 10 3 . 13 19 10 25 Peak Tracking Total 7 | . 3 2 7 2 . 4 6 6 5 Tactical Retreats 6 | . . . . . . . 5 . 1 Traps | -11 -10 -10 -9 -9 -9 -8 -8 -8 -8 ------- Run | Yrd Mat Min Mat Min Exi Min Mat Sto Gar Traps Triggered 2 | . . . . . . . . . 2 Indirectly . | . . . . . . . . . . Trap Hack Attempts . | . . . . . . . . . . Triggered . | . . . . . . . . . . Disarmed . | . . . . . . . . . . Reprogrammed . | . . . . . . . . . . Reused . | . . . . . . . . . . Traps Extracted . | . . . . . . . . . . Installed . | . . . . . . . . . . Triggered . | . . . . . . . . . . Machines | -11 -10 -10 -9 -9 -9 -8 -8 -8 -8 ---------- Run | Yrd Mat Min Mat Min Exi Min Mat Sto Gar Machines Disabled 11 | . 1 . 2 . . . 2 . 6 Max in Single Turn 1 | . 1 . 1 . . . 1 . 1 Garrison Relay 2 | . . . . . . . . . 2 Phase Generator 1 | . . . . . . . . . 1 Machines Repaired . | . . . . . . . . . . Machines Dismantled . | . . . . . . . . . . Machines Sabotaged . | . . . . . . . . . . Overloaded Fab Kills . | . . . . . . . . . . Hacking | -11 -10 -10 -9 -9 -9 -8 -8 -8 -8 --------- Run | Yrd Mat Min Mat Min Exi Min Mat Sto Gar Machines Accessed 11 | . 2 . . 2 2 . . 1 4 Terminals 6 | . 2 . . . . . . . 4 Fabricators . | . . . . . . . . . . Repair Stations . | . . . . . . . . . . Recycling Units . | . . . . . . . . . . Scanalyzers . | . . . . . . . . . . Garrison Access 1 | . . . . . . . . 1 . Total Hacks 47 | . 2 . . 2 32 . . 1 10 Successful 38 | . 2 . . 2 32 . . 1 1 Failed 9 | . . . . . . . . . 9 Catastrophic 2 | . . . . . . . . . 2 Database Lockouts . | . . . . . . . . . . Manual . | . . . . . . . . . . Terminals 12 | . 2 . . . . . . . 10 Fabricators . | . . . . . . . . . . Repair Stations . | . . . . . . . . . . Recycling Units . | . . . . . . . . . . Scanalyzers . | . . . . . . . . . . Garrison Access 1 | . . . . . . . . 1 . Terminal Hacks 37 | . 2 . . 2 32 . . . 1 Record 32 | . . . . . 32 . . . . Prototype ID Bank 1 | . 1 . . . . . . . . Open Door 2 | . . . . 2 . . . . . Branch Access Points 1 | . 1 . . . . . . . . Emergency Access Points 1 | . . . . . . . . . 1 Fabricator Hacks . | . . . . . . . . . . Repair Station Hacks . | . . . . . . . . . . Recycling Unit Hacks . | . . . . . . . . . . Scanalyzer . | . . . . . . . . . . Garrison Access Hacks 1 | . . . . . . . . 1 . Unlock Access 1 | . . . . . . . . 1 . Unauthorized Hacks . | . . . . . . . . . . Terminals . | . . . . . . . . . . Fabricators . | . . . . . . . . . . Repair Stations . | . . . . . . . . . . Recycling Units . | . . . . . . . . . . Scanalyzers . | . . . . . . . . . . Garrison Access . | . . . . . . . . . . Data Cores Recovered . | . . . . . . . . . . Used . | . . . . . . . . . . Hacking Detections 3 | . . . . . . . . . 3 Full Trace Events 1 | . . . . . . . . . 1 Feedback Events . | . . . . . . . . . . Feedback Blocked . | . . . . . . . . . . Robot Schematics Acquired . | . . . . . . . . . . Robots Built . | . . . . . . . . . . Authchips . | . . . . . . . . . . Time . | . . . . . . . . . . Total Robot Build Rating . | . . . . . . . . . . Part Schematics Acquired . | . . . . . . . . . . Parts Built . | . . . . . . . . . . Authchips . | . . . . . . . . . . Time . | . . . . . . . . . . Total Part Build Rating . | . . . . . . . . . . Part Studies Acquired . | . . . . . . . . . . Parts Repaired . | . . . . . . . . . . Time . | . . . . . . . . . . Parts Recycled . | . . . . . . . . . . Recycled Matter . | . . . . . . . . . . Retrieved Matter . | . . . . . . . . . . Retrieved Components . | . . . . . . . . . . Parts Scanalyzed . | . . . . . . . . . . Part Schematics Acquired . | . . . . . . . . . . Parts Damaged . | . . . . . . . . . . Bothacking | -11 -10 -10 -9 -9 -9 -8 -8 -8 -8 ------------ Run | Yrd Mat Min Mat Min Exi Min Mat Sto Gar Used RIF Installer . | . . . . . . . . . . Robots Hacked . | . . . . . . . . . . Non-combat . | . . . . . . . . . . Combat . | . . . . . . . . . . Robot Hacks Applied . | . . . . . . . . . . Relay Couplers Released 9 | . . . . . . . . . 9 Machine Destruction 9 | . . . . . . . . . 9 Fabnet Peak Effective % . | . . . . . . . . . . Robots Rewired . | . . . . . . . . . . Allies Hacked . | . . . . . . . . . . Hacks Repelled . | . . . . . . . . . . Allies | -11 -10 -10 -9 -9 -9 -8 -8 -8 -8 -------- Run | Yrd Mat Min Mat Min Exi Min Mat Sto Gar Total Allies 3 | . . . . 3 . . . . . Largest Group 3 | . . . . 3 . . . . . Highest-Rated Group 40 | . . . . 40 . . . . . Highest-Rated Ally 16 | . . . . 16 . . . . . Total Orders 5 | . . . . 5 . . . . . EXPLORE 3 | . . . . 3 . . . . . RETURN 2 | . . . . 2 . . . . . Ally Attacks 33 | . . . . 33 . . . . . Total Damage 198 | . . . . 198 . . . . . Kills 8 | . . . . 8 . . . . . Allies Corrupted . | . . . . . . . . . . Allies Melted . | . . . . . . . . . . Intel | -11 -10 -10 -9 -9 -9 -8 -8 -8 -8 ------- Run | Yrd Mat Min Mat Min Exi Min Mat Sto Gar Active Infowar (turns) 1628 | . . . 275 1007 . . 346 . . Sensors 1628 | . . . 275 1007 . . 346 . . Robot Analysis Total . | . . . . . . . . . . Derelict Logs Recovered 1 | . . . . 1 . . . . . Drone Launches 3 | . . . . 3 . . . . . Drone Recoveries 3 | . . . . 3 . . . . . Exploration | -11 -10 -10 -9 -9 -9 -8 -8 -8 -8 ------------- Run | Yrd Mat Min Mat Min Exi Min Mat Sto Gar Turns Passed 7375 | 78 872 897 419 1143 973 783 689 117 1404 Spaces Moved 3643 | 63 657 412 240 479 453 378 347 32 582 Core 2 | 2 . . . . . . . . . Treads 700 | . 124 127 1 344 . . . . 104 Legs 29 | . . . . . . . . . 29 Wheels 2912 | 61 533 285 239 135 453 378 347 32 449 Hover . | . . . . . . . . . . Flight . | . . . . . . . . . . Fastest Speed 50 | 50 95 160 125 125 215 145 145 145 145 Average Speed 170 | 98 107 199 135 220 215 167 145 145 186 Slowest Speed 480 | 100 160 320 215 240 215 215 145 145 480 Overloaded Moves . | . . . . . . . . . . Propulsion Burnouts . | . . . . . . . . . . Robots Hopped . | . . . . . . . . . . Potential Cave-ins . | . . . . . . . . . . Cave-ins Triggered . | . . . . . . . . . . Exploration Rate (%) 56 | 3 90 83 30 90 86 69 39 9 68 Regions Visited 9 Branch Regions 5 Pre-discovered Areas 2 | . . . . 1 1 . . . . Known Exits Taken 6 | . 1 . . 1 1 1 1 1 . Unknown Exits Taken 3 | 1 . 1 1 . . . . . . Scrap Searched 2 | . . 1 . 1 . . . . . Spaces Dug . | . . . . . . . . . . Terrain Destroyed 221 | . . . . . . 89 12 33 87 Melee . | . . . . . . . . . . Projectile 24 | . . . . . . 12 12 . . AOE 197 | . . . . . . 77 . 33 87 Terrain Rammed . | . . . . . . . . . . Walls Destroyed . | . . . . . . . . . . Machines Disabled . | . . . . . . . . . . Actions | -11 -10 -10 -9 -9 -9 -8 -8 -8 -8 --------- Run | Yrd Mat Min Mat Min Exi Min Mat Sto Gar Total 4420 | 76 786 470 320 551 453 461 473 76 754 Wait 351 | 3 91 44 41 49 1 20 55 26 21 Move 3635 | 62 656 411 239 478 452 377 346 32 582 Hop . | . . . . . . . . . . Pick Up 67 | 5 8 1 14 6 . 7 14 1 11 Fast Attach 22 | 5 2 1 3 . . 1 2 . 8 Attach 25 | 1 . 1 2 . . 4 5 . 12 Detach 3 | . . . . . . . 1 . 2 Swap 29 | . 3 1 3 7 . 5 5 2 3 Drop 46 | . 6 1 9 5 . 3 9 . 13 Fire 212 | . 18 10 3 6 . 34 36 15 90 Melee 18 | . 2 . 6 . . 10 . . . Ram . | . . . . . . . . . . Kick . | . . . . . . . . . . Crush . | . . . . . . . . . . Escape Stasis 10 | . . . . . . . . . 10 Rewire 2 | . . . . . . . . . 2 Trap . | . . . . . . . . . . Miscellaneous . | . . . . . . . . . . Route ------- -11/Scrapyard -10/Materials (discovered 5 exits: [*Mat x3] / *Min x2) -10/Mines -9/Materials -9/Mines (discovered 4 exits: *Mat x2 / *Exi / *Zio) -9/Exiles -8/Mines (discovered 2 exits: *Mat x2) -8/Materials -8/Storage -8/Garrison (discovered 2 exits: *Fac x2) History --------- Turn | Location | Event 27 | -11/Scrapyard | Discovered new exit (range 14) 79 | -11/Scrapyard | Entered Materials 80 | -10/Materials | Met a group of wandering Federalists 258 | -10/Materials | Discovered new exit (range 15) 312 | -10/Materials | Build established: Mutant 358 | -10/Materials | Discovered new exit (range 16) 496 | -10/Materials | Identified exit to Mines 524 | -10/Materials | Discovered new exit (range 16) 951 | -10/Materials | Entered Mines 977 | -10/Mines | Found a hidden stash of uninstalled traps 1510 | -10/Mines | Discovered new exit (range 11) 1546 | -10/Mines | Received a Rocket Launcher from a helpful Derelict 1848 | -10/Mines | Entered Materials 1848 | -9/Materials | Evolved 2 slots: Propulsion x1, Utility x1 2204 | -9/Materials | Discovered new exit (range 7) 2267 | -9/Materials | Entered Mines 2268 | -9/Mines | Learned location of Storage (-8) 2285 | -9/Mines | Assisted by bots powering up and referring to "LRC-V3" 2308 | -9/Mines | Met a Derelict bent on vengeance 2341 | -9/Mines | Found the Drone Emporium 2350 | -9/Mines | Found Prototype Device 2365 | -9/Mines | Identified Thief Drone Bay 2422 | -9/Mines | Discovered new exit (range 35) 2636 | -9/Mines | A Derelict revealed a hidden shortcut to a safe place 2677 | -9/Mines | Identified exit to Zion 2835 | -9/Mines | Learned Materials stockpile data 3166 | -9/Mines | Discovered new exit (range 10) 3203 | -9/Mines | Met a Derelict shopkeep closing up shop 3401 | -9/Mines | Deemed a non-threat by the Exiles lab entrance 3401 | -9/Mines | Discovered new exit (range 5) 3407 | -9/Mines | Identified exit to Exiles 3410 | -9/Mines | Entered Exiles 3469 | -9/Exiles | Met 8R-AWN 3509 | -9/Exiles | Met EX-HEX 3518 | -9/Exiles | Build established: Scavenger-Mutant 3650 | -9/Exiles | Met EX-DEC 3726 | -9/Exiles | Visited The Gauntlet 4007 | -9/Exiles | Met EX-BIN 4123 | -9/Exiles | Learned location of Zion (-7) 4362 | -9/Exiles | Discovered new exit (range 11) 4381 | -9/Exiles | Identified exit to Mines 4383 | -9/Exiles | Entered Mines 4694 | -8/Mines | Core integrity fell below 50% 4707 | -8/Mines | Lost 3 parts (1p2n) 4713 | -8/Mines | Core integrity fell below 20% 4943 | -8/Mines | Build established: Mutant 5117 | -8/Mines | Discovered new exit (range 8) 5124 | -8/Mines | Discovered new exit (range 16) 5127 | -8/Mines | Identified exit to Materials 5166 | -8/Mines | Entered Materials 5166 | -8/Materials | Evolved 2 slots: Utility x2 5752 | -8/Materials | Discovered new exit (range 7) 5854 | -8/Materials | Identified exit to Storage 5855 | -8/Materials | Entered Storage 5922 | -8/Storage | Garrison activated, responded to threat 5972 | -8/Storage | Identified exit to Garrison 5972 | -8/Storage | Entered Garrison 6060 | -8/Garrison | Phase Generator disabled 6214 | -8/Garrison | Triggered checkpoint 6290 | -8/Garrison | Core integrity fell below 50% 6409 | -8/Garrison | Discovered new exit (range 13) 6425 | -8/Garrison | Identified exit to Factory 6490 | -8/Garrison | Triggered checkpoint 6571 | -8/Garrison | Build established: Scavenger-Mutant 6638 | -8/Garrison | Garrison Relay disabled 6868 | -8/Garrison | Triggered checkpoint 6977 | -8/Garrison | Garrison Relay disabled 7136 | -8/Garrison | Triggered checkpoint 7145 | -8/Garrison | Core integrity fell below 20% 7224 | -8/Garrison | Discovered exit to Factory (range 8) 7320 | -8/Garrison | Spotted B-75 Beast 7320 | -8/Garrison | Spotted B-75 Beast 7376 | -8/Garrison | Destroyed by B-75 Beast with Heavy Machine Gun Last Messages --------------- 07185_ Acquired Hvy. Particle Gun. 07187_ System corrupted: Matter fused (-7). 07189_ Acquired Hvy. Particle Gun. 07192_ Acquired 20 matter. 07224_ EXIT=FOUND: FACTORY 07242_ System corrupted: Heat flow error (+205). 07257_ System corrupted: Substantial component data lost. 07297_ System corrupted: FCS attempts to trigger Plasma Cannon. 07297_ System corrupted: Plasma Cannon misfires. 07312_ W6Q PYH=G022QI3ENAD<> [Achievement: Let Me Out Of Here] 07326_ B-75 Beast springs to life. 07328_ Hvy. Particle Gun destroyed. 07331_ Mic. Nuclear Core destroyed. 07334_ Lgt. Treads destroyed. 07338_ Rocket Launcher destroyed. 07340_ Lgt. Treads destroyed. 07358_ J0RK|H>M>KAQYCW5 8> HER:K,RS4 J 07366_ Knocked back. 07366_ Lgt. Treads destroyed. Map ----- +----------------------------------------------------+ | # #?????????????????????# #????# ### ### ## #??? | | # #?????????????????????# #????# #?# # ## #??? | | # ##### ########????????# #????# #?# # ## #??? | | # #????????# #????# #?# # ### #??? | | #?#### #### #???????## ###### ### ### ### #??? | | #?????????# #???????# #??? | | # #?????????# #???????# #??? | | # #?????????# #???????# ###### ## ^##########??? | | # #######???# #####??## ###### ## #???????????? | | + #???# #??# [ %[ ## #???????????? | | # ##### #???# ### #??##% ##### ### #???????????? | | # #???# #???# #?# ##### =#???# #?# #???????????? | | # %#???# #???# #?# ## #???# #?# #???????????? | | # #???# #??## ### ## ##??# #?# #???????????? | | # ##### #### #### ### #???????????? | | #???????????? | | # #???????????? | | ############# ## ## ###########???????????? | | ????????????# ##^ ^## ###???????????????????? | | ????????????" #???????????????????? | | ????????????" #???????????????????? | | ????????????" #???????????????????? | | ????????????" #???????????????????? | | ????????????# ## ## ###???????????????????? | | ????????????# ## ## ############??????????? | | ????????????# @ #??????????? | | ????????????# ^ #####??????? | | ????????????# [[#??????? | | ????????????## ##""""## ####BB### ###%#????### | | ?????????????# #??????# #??# B#?# #?#*#????# ! | | ?????????????? ???????# #??# #??# #?# #????# ! | | ???????????????????????# #??# #??# #?# #????# ! | | ???????????????????????#BB#??# #??# ### ##???# # | | ???????????????????????#BB#??" #??# ## #???# # | | ???????????????????????# ###" #### ## ##### # | | ???????????????????????# % | | ???????????????????????# | | ???????????????????????# ######### ### ######## | | ???????????????????????# #???????# #?# #??????? | | ???????????????????????# ???????# #?# #??????? | | ??????????????????????? ???????# #?# #??????? | | ??????????????????????! ???????# ### ######## | | ????????????????????? !???????# * % | | ????????????????????# !???????# ^=! | | ????????????????????# !???????# ## #####*# | | ????????????????????# ???????# ## #???#=# | | ????????????????????# !???????# ### ##???#*# | | ????????????????????# !???????# #?# #????#%! | | ????????????????????# !???????# #?# #????#=! | | ?????????????????????######???????# #?# #????#=! | +----------------------------------------------------+ Best States ------------- Heat Dissipation 45 Energy Generation 15 Energy Capacity 250 Matter Stores 300 Matter Capacity 300 Sight Range 16 Robot Scan Range 14 Terrain Scan Density 10 Armor Coverage 225 Evasion (%) 41 Targeting Accuracy 5 Target Analysis 5 Recoil Reduction 3 Item Schematics ----------------- None Robot Schematics ------------------ None Fabricated ------------ Nothing Repaired ---------- Nothing Studied --------- None Alien Tech Used ----------------- None Achievements -------------- I Have A Map? Let Me Out Of Here There's More Where That Came From Challenges ------------ None Game ------ Seed LightningRelayLance Manual? 0 Play Time 01:02:07 Cumulative 97.2 hours Start 2025.10.29 @ 02:14:38 End 2025.10.29 @ 03:27:40 Sessions 1 Manual Loads 0 Difficulty Rogue Special Mode None Game No. 131 Rogue 131 Adventurer 0 Explorer 0 Win Type - Total 1 Types 1/0/0/0/0/0/0/0/0/0 Lore% 29 Gallery% 44 Achievement% 26 Wizard Run 0 Options --------- Layout 0 ASCII 0 Keyboard 0 Movement Mouse Keybinds 0 Fullscreen 1 Font 18/Smallcaps Map View 76x50 Zoom Use 0% Tactical HUD 1 Map Filters NONE Filters NONE Steam 1 RUN: 0b3c8054-01b8-4422-a786-1daab5f685cc